[Event "1000GM 0004 IM Norm 2022"]
[Site "Saint Louis"]
[Date "2022.09.24"]
[Round "7.5"]
[White "Yim, Sung Ho"]
[Black "Wang, Tianqi"]
[Result "1/2-1/2"]
[ECO "D45"]
[WhiteElo "2207"]
[BlackElo "2424"]
[Annotator "TA"]
[PlyCount "117"]
[EventDate "2022.09.21"]
[EventType "tourn"]
[EventCountry "USA"]
[SourceTitle "playchess.com"]
[Source "ChessBase"]
[SourceQuality "1"]
[TimeControl "5400+30"]

{[%evp 12,117,10,-7,30,17,34,23,29,24,19,28,28,22,41,33,59,21,34,33,25,17,51,15,76,75,72,66,93,69,60,68,70,57,58,58,66,58,54,45,83,68,451,456,450,445,458,453,432,207,207,207,271,263,251,255,282,265,272,254,275,278,276,275,275,270,260,254,368,361,427,415,388,192,194,194,194,194,194,194,194,187,194,187,194,194,194,194,125,125,125,0,0,0,0,0,0,0,0,0,0,0,0,0,0,0,0,0]} 1. d4 {[%emt 0:00:58]} Nf6 {[%emt 0:20:00]} 2. c4 {[%emt 0:00:06]} c6 {[%emt 0:00:44]} 3. Nf3 {[%emt 0:00:24]} d5 {[%emt 0:00:07]} 4. e3 {[%emt 0:00:15]} a6 {[%emt 0:00:06]} 5. Bd2 {[%emt 0:00:35]} e6 {[%emt 0:01:32]} 6. Qc2 {[%emt 0:00:25]} Nbd7 {[%emt 0:00:54]} 7. Nc3 {[%emt 0:00:08]} Bb4 {[%emt 0:01:42] D45: Semi-Slav: 5 e3.} 8. Bd3 {[%emt 0:02:09]} dxc4 {[%emt 0:00:49]} 9. Bxc4 {[%emt 0:00:06]} Bd6 {[%emt 0:02:20] White has an edge.} 10. O-O {[%emt 0:05:41]} O-O {[%emt 0:01:32] [#]} 11. Ne4 $146 {[%emt 0:11:45]} ({Predecessor:} 11. Rad1 b5 12. Bd3 Bb7 13. e4 e5 14. dxe5 Nxe5 15. Nxe5 Bxe5 16. Bg5 Qc7 17. Bxf6 Bxf6 18. Nd5 {1-0 (24) Carleson,C (2310)-Behrhorst,F (2285) Stockholm 1985}) 11... Nxe4 {[%emt 0:08:11]} 12. Qxe4 {[%emt 0:00:07]} Qe7 {[%emt 0:00:06]} 13. Bc3 {[%emt 0:08:50]} Nf6 {[%emt 0:03:56]} 14. Qh4 {[%emt 0:03:17]} Nd7 {[%emt 0:03:47]} 15. Qxe7 {[%emt 0:04:31]} Bxe7 {[%emt 0:04:02]} 16. Rfd1 {[%emt 0:01:25]} c5 {[%emt 0:17:18]} 17. Be2 {[%emt 0:03:28]} b6 {[%emt 0:16:07]} (17... b5 $11 {keeps the balance.}) 18. dxc5 $16 {[%emt 0:09:57]} Nxc5 {[%emt 0:00:21]} 19. Ne5 {[%emt 0:01:04] And now Bf3 would win.} Re8 {[%emt 0:01:07]} 20. Bh5 {[%emt 0:02:35] White has more active pieces. The black rooks are badly placed.} g6 {[%emt 0:01:36]} 21. Bf3 $36 {[%emt 0:01:27][%mdl 2048] White fights for an advantage.} Bb7 {[%emt 0:00:06]} 22. Bxb7 {[%emt 0:05:08]} Nxb7 {[%emt 0:00:01]} 23. Nd7 {[%emt 0:01:05]} b5 {[%emt 0:01:44]} 24. Nf6+ {[%emt 0:01:18]} Bxf6 {[%emt 0:00:40]} 25. Bxf6 {[%emt 0:00:02]} Nc5 {[%emt 0:00:02]} 26. f3 {[%emt 0:02:48]} Ra7 $2 {[%emt 0:00:00][%mdl 8192] [#]} (26... Rec8 $14) 27. Bd4 $1 $18 {[%emt 0:03:03]} Rc7 {[%emt 0:00:57]} 28. Rac1 {[%emt 0:00:40]} Rec8 {[%emt 0:00:07]} 29. Be5 {[%emt 0:01:35]} Rc6 {[%emt 0:01:37]} 30. b4 {[%emt 0:00:26]} (30. Rd6 $142) 30... f6 {[%emt 0:00:02]} 31. Bxf6 {[%emt 0:02:03]} ({Not} 31. bxc5 fxe5 32. a3 a5 $11) ({And not} 31. Rxc5 Rxc5 32. bxc5 fxe5 $11) 31... Na4 {[%emt 0:00:00] [#]} 32. Rd8+ $1 {[%emt 0:04:33]} Rxd8 {[%emt 0:00:16]} 33. Rxc6 {[%emt 0:00:05][%mdl 4096] Endgame KRB-KRN} Rd1+ {[%emt 0:00:48]} 34. Kf2 {[%emt 0:00:05]} Kf7 {[%emt 0:00:32]} 35. Bd4 {[%emt 0:00:44]} Rd2+ {[%emt 0:00:52]} 36. Kg3 {[%emt 0:00:24]} Nb2 {[%emt 0:03:30]} 37. Rxa6 {[%emt 0:04:02]} Nd3 {[%emt 0:00:04]} 38. Ra7+ {[%emt 0:00:27]} Ke8 {[%emt 0:00:30]} 39. Rxh7 {[%emt 0:02:28] Threatens to win with Bc5.} e5 {[%emt 0:01:22]} (39... Rxa2 {keeps fighting.} 40. h4 Rc2) 40. Bc5 {[%emt 0:01:35]} Ne1 {[%emt 0:02:35]} 41. Re7+ {[%emt 0:01:43]} Kd8 {[%emt 0:00:04]} 42. Rxe5 {[%emt 0:02:12]} (42. f4 $142) 42... Rxg2+ {[%emt 0:00:09]} 43. Kh3 {[%emt 0:00:22] aiming for f4.} Rxh2+ {[%emt 0:02:47]} 44. Kxh2 {[%emt 0:02:20] Intending Kg3 and mate.} Nxf3+ {[%emt 0:00:01]} 45. Kg3 {[%emt 0:00:06]} Nxe5 {[%emt 0:00:01] KB-KN} 46. Kf4 {[%emt 0:00:33]} Nd3+ {[%emt 0:03:19]} 47. Kg5 {[%emt 0:02:46]} Kd7 {[%emt 0:00:55]} 48. Kxg6 {[%emt 0:03:58]} Ke6 {[%emt 0:00:00]} 49. Kg7 {[%emt 0:01:43]} Nc1 {[%emt 0:00:37]} 50. a3 {[%emt 0:00:21]} Nb3 {[%emt 0:01:00]} 51. Kf8 {[%emt 0:01:44]} ({White has to play} 51. Bd4 $16) 51... Nd2 $11 {[%emt 0:01:40] The position is equal.} 52. Ke8 {[%emt 0:01:17]} Nc4 {[%emt 0:00:23]} 53. Bd4 {[%emt 0:01:43]} Nxa3 {[%emt 0:00:12]} 54. e4 {[%emt 0:01:48]} Nc2 {[%emt 0:00:03][%csl LRb4,LRd4]} 55. Bc3 {[%emt 0:00:24]} Nxb4 {[%emt 0:00:02]} 56. Bxb4 {[%emt 0:00:05] Strongly threatening Bc3.} Ke5 {[%emt 0:00:01]} 57. Kd7 {[%emt 0:00:09]} Kxe4 {[%emt 0:00:09]} 58. Kc6 {[%emt 0:00:04]} Ke5 {[%emt 0:00:04]} 59. Kxb5 {[%emt 0:00:03] Black defended with fortune.  Weighted Error Value: White=0.16 (very precise) /Black=0.29 (precise)} 1/2-1/2

[Event "1000GM 0004 IM Norm 2022"]
[Site "Saint Louis"]
[Date "2022.09.25"]
[Round "8.1"]
[White "Denby, Caleb"]
[Black "Wang, Tianqi"]
[Result "0-1"]
[ECO "A70"]
[WhiteElo "2201"]
[BlackElo "2424"]
[Annotator "TA"]
[PlyCount "100"]
[EventDate "2022.09.21"]
[EventType "tourn"]
[EventCountry "USA"]
[SourceTitle "playchess.com"]
[Source "ChessBase"]
[SourceQuality "1"]
[TimeControl "5400+30"]

{[%evp 16,100,62,0,60,0,0,0,0,7,0,0,67,22,24,-10,-10,-18,-14,-8,-14,-49,-15,-15,-19,-26,-9,-16,0,0,0,-5,-6,-5,-5,-6,-7,-16,0,-4,-1,-4,-2,-10,0,0,4,0,0,0,0,0,0,0,0,0,0,0,0,-803,-803,-797,-777,-675,0,0,0,0,0,0,0,-609,-493,-12838,-12839,-12838,-12839,-12839,-12839,-12836,-12836,-29991,-29992,-29994,-29995,-29996,-29985]} 1. d4 {[%emt 0:00:10]} Nf6 {[%emt 0:00:11]} 2. c4 {[%emt 0:00:03]} c5 {[%emt 0:00:20]} 3. d5 {[%emt 0:00:05]} e6 {[%emt 0:00:04]} 4. Nc3 {[%emt 0:00:10]} exd5 {[%emt 0:00:04]} 5. cxd5 {[%emt 0:00:03]} d6 {[%emt 0:00:04]} 6. Nf3 {[%emt 0:00:28]} g6 {[%emt 0:00:04]} 7. h3 {[%emt 0:00:06]} Bg7 {[%emt 0:00:07]} 8. e4 {[%emt 0:00:05]} O-O {[%emt 0:00:38]} 9. Be3 {[%emt 0:00:04]} (9. Bd3 $14) 9... b5 {[%emt 0:04:29] A70: Modern Benoni: 6 e4 g6 7 Nf3.} (9... Re8 $11) 10. Bxb5 {[%emt 0:00:36]} (10. e5 $1 $14 Nfd7 11. exd6) 10... Nxe4 $1 $11 {[%emt 0:00:58]} 11. Nxe4 {[%emt 0:06:37] [#] aiming for 0-0.} Qa5+ {[%emt 0:00:28] The position is equal.} 12. Nfd2 {[%emt 0:04:16]} Qxb5 {[%emt 0:00:20]} 13. Nxd6 {[%emt 0:00:11] Pair of Knights!} Qa6 {[%emt 0:00:04] [#]} (13... Qxb2 $11 14. Rc1 Ba6) 14. Nxc8 $146 {[%emt 0:03:24]} (14. Bxc5 Nd7 15. Ba3 (15. Nxc8 Rfxc8 16. Be3 Ne5 $17) 15... Ne5 $15) (14. N2c4 $5 {[%cal Re1g1]}) ({Predecessor:} 14. N2c4 Nd7 15. O-O Nb6 16. Nxb6 Qxb6 17. Nxc8 Raxc8 {½-½ (17) Matijevic,H (2249)-Damjanovic,M (2307) Croatia 2009}) 14... Rxc8 {[%emt 0:00:32]} 15. Qc2 {[%emt 0:03:03]} Nd7 {[%emt 0:01:30][%cal Bb8d7,Bd7b6,Bb6d5,Bd5e7,Be7f5,Bf5d4][%mdl 32]} 16. Nc4 {[%emt 0:05:16]} Nb6 {[%emt 0:19:39]} 17. Rc1 {[%emt 0:10:38]} Nxd5 {[%emt 0:03:24]} 18. a3 {[%emt 0:03:02] Inhibits Nb4.} Ne7 {[%emt 0:07:13]} (18... Bc3+ $5 19. bxc3 Qxc4 $15) 19. O-O {[%emt 0:02:05]} Nf5 {[%emt 0:00:44]} 20. Rfe1 {[%emt 0:00:40]} h5 {[%emt 0:04:01]} 21. Rcd1 {[%emt 0:05:08]} Qc6 {[%emt 0:01:22]} 22. Bf4 {[%emt 0:03:34]} Bd4 {[%emt 0:07:04]} 23. Be5 {[%emt 0:01:05]} Re8 {[%emt 0:01:56]} 24. Bxd4 {[%emt 0:01:31]} Nxd4 {[%emt 0:00:22]} 25. Qd3 {[%emt 0:01:16]} Rad8 {[%emt 0:01:14]} 26. Kf1 {[%emt 0:02:57]} Ne6 {[%emt 0:16:01]} 27. Ne5 {[%emt 0:12:57]} Qc7 {[%emt 0:01:33]} 28. Qg3 {[%emt 0:01:43]} Rxd1 {[%emt 0:00:58]} 29. Rxd1 {[%emt 0:00:06]} h4 {[%emt 0:00:06]} (29... Nd4 {with more complications.} 30. Nf3 Qb6 31. Nxd4 Rd8) 30. Qc3 {[%emt 0:01:17] Strongly threatening Nd7.} Ng5 {[%emt 0:06:21]} 31. f4 {[%emt 0:04:42]} Ne4 $36 {[%emt 0:03:30][%mdl 2048] Black is more active.} 32. Qc4 {[%emt 0:05:51][%csl LRe4,LRg6]} Ng3+ {[%emt 0:01:18]} (32... Rxe5 33. fxe5 Qxe5 34. Kg1 $16) 33. Kg1 {[%emt 0:00:10] Rd7 is the strong threat.} Re7 {[%emt 0:09:09] Inhibits Rd7.} 34. Nxg6 {[%emt 0:03:13]} Re4 {[%emt 0:00:17]} (34... Re2 35. Qd5 (35. Nxh4 Re4 $11) 35... Kg7 36. Ne5 $16) 35. Qd5 {[%emt 0:00:30][%cal Od5g5] Hoping for Qg5!} Rd4 {[%emt 0:01:16]} 36. Rxd4 {[%emt 0:08:19]} ({Don't play} 36. Qa8+ Kg7 37. Rxd4 cxd4 38. Nxh4 (38. Qh8+ $2 Kxg6 39. Qg8+ Kf6 $19) 38... d3 $17) 36... cxd4 {[%emt 0:00:11][%mdl 4096] Endgame KQN-KQN. The board is on fire.} 37. Qa8+ $2 {[%emt 0:00:11][%mdl 8192]} (37. Kh2 $11) 37... Kg7 $19 {[%emt 0:00:10]} 38. Nxh4 {[%emt 0:00:03] [#]} Qc1+ $1 {[%emt 0:02:55]} ({Not} 38... Qxf4 39. Nf3 $11) 39. Kh2 {[%emt 0:00:03]} Nf1+ $2 {[%emt 0:00:33]} ({Black should play} 39... Ne2 $19 {[%csl Ge2][%cal Rc1g1]} 40. Nf3 Qxf4+ 41. Kh1 Qc1+ 42. Kh2 Qc7+ 43. Kh1 d3) 40. Kg1 $11 {[%emt 0:00:19]} Ne3+ {[%emt 0:00:31]} ({Don't go for} 40... Ng3+ $2 41. Kh2 Ne2 42. Nf3 Qxf4+ 43. Kh1 Qc1+ 44. Kh2 Qc7+ 45. Kh1 Qc1+ 46. Kh2 Qc7+ 47. Kh1 $19) 41. Kh2 {[%emt 0:00:28]} Nf1+ $2 {[%emt 0:06:24][%mdl 8192]} (41... d3 $11 42. Qxa7 Nf1+ 43. Kh1 Ng3+ 44. Kh2 Qxf4) 42. Kg1 $19 {[%emt 0:00:04]} Ng3+ {[%emt 0:00:06]} 43. Kh2 {[%emt 0:00:05]} Ne2 {[%emt 0:00:18][%csl Ge2][%cal Rc1g1]} 44. Nf5+ {[%emt 0:02:08]} (44. Nf3 $142 Qxf4+ 45. Kh1) 44... Kh7 {[%emt 0:00:13][%csl Ge2][%cal Rc1g1]} 45. h4 {[%emt 0:04:32]} Qxf4+ {[%emt 0:00:29]} 46. g3 {[%emt 0:00:11]} Qxf5 {[%emt 0:00:16]} 47. Kg2 {[%emt 0:00:04]} d3 {[%emt 0:00:21] ( -> ...d2)} 48. Qd8 {[%emt 0:00:15]} Qe4+ {[%emt 0:00:21] Black mates.} 49. Kh2 {[%emt 0:00:41]} Qe3 {[%emt 0:00:08]} 50. Qc7 {[%emt 0:00:26]} Qxg3+ {[%emt 0:00:12] Weighted Error Value: White=0.40/Black=0.27 (precise)} 0-1

[Event "1000GM 0004 IM Norm 2022"]
[Site "Saint Louis"]
[Date "2022.09.25"]
[Round "8.2"]
[White "Chen, Ryo"]
[Black "Yim, Sung Ho"]
[Result "1-0"]
[ECO "C90"]
[WhiteElo "2256"]
[BlackElo "2207"]
[Annotator "TA"]
[PlyCount "103"]
[EventDate "2022.09.21"]
[EventType "tourn"]
[EventCountry "USA"]
[SourceTitle "playchess.com"]
[Source "ChessBase"]
[SourceQuality "1"]
[TimeControl "5400+30"]

{[%evp 23,103,3,11,6,9,-3,10,0,24,18,40,29,40,40,40,40,68,61,63,66,60,43,78,68,69,69,82,72,72,72,72,72,72,50,79,42,37,17,60,60,60,61,105,92,202,195,191,186,187,95,102,0,153,124,188,177,422,420,408,392,468,428,470,447,654,493,856,842,835,834,884,881,846,829,29985,29986,29990,29989,29989,29990,29991,29992]} 1. e4 {[%emt 0:00:00]} e5 {[%emt 0:00:07]} 2. Nf3 {[%emt 0:00:10]} Nc6 {[%emt 0:00:06]} 3. Bb5 {[%emt 0:00:06]} a6 {[%emt 0:00:06]} 4. Ba4 {[%emt 0:00:04]} Nf6 {[%emt 0:00:07]} 5. d3 {[%emt 0:00:12]} b5 {[%emt 0:00:33]} 6. Bb3 {[%emt 0:00:12]} Be7 {[%emt 0:00:23]} 7. O-O {[%emt 0:00:50]} d6 {[%emt 0:00:13]} 8. c3 {[%emt 0:00:24]} O-O {[%emt 0:00:20]} 9. Nbd2 {[%emt 0:01:08][%cal Bb1d2,Bd2f1,Bf1e3][%mdl 32]} Na5 {[%emt 0:00:08]} 10. Bc2 {[%emt 0:00:15]} c5 {[%emt 0:00:06]} 11. Re1 {[%emt 0:00:49]} Nc6 {[%emt 0:00:10]} 12. Nf1 {[%emt 0:00:26]} Re8 {[%emt 0:00:16] 12...h6 might become the main line.} 13. Bg5 {[%emt 0:01:25] C90: Closed Ruy Lopez with 7...d6: Early deviations.} Be6 {[%emt 0:02:44]} 14. Ne3 {[%emt 0:03:48] [#]} Rc8 $146 {[%emt 0:12:58]} ({Predecessor:} 14... Nd7 15. Bxe7 Qxe7 16. d4 cxd4 17. cxd4 Nxd4 18. Nxd4 exd4 19. Qxd4 Rac8 20. Rad1 Rc6 {½-½ (101) Vaibhav,S (2535)-Kurnosov,I (2657) Abu Dhabi 2013}) 15. Bb3 {[%emt 0:01:25] The position is equal.} Qd7 {[%emt 0:10:09]} 16. a4 {[%emt 0:03:39]} h6 {[%emt 0:09:23]} 17. Bh4 {[%emt 0:07:34]} Bd8 {[%emt 0:03:02]} 18. axb5 {[%emt 0:00:42]} (18. Bxe6 {looks sharper.} fxe6 19. axb5 axb5 20. Bxf6 Bxf6 21. Qb3) 18... axb5 {[%emt 0:00:19]} 19. Bxe6 {[%emt 0:11:45]} Qxe6 {[%emt 0:01:31]} 20. Bxf6 {[%emt 0:01:06]} Bxf6 {[%emt 0:00:32]} 21. Ra6 {[%emt 0:00:53]} Bd8 {[%emt 0:02:52] Prevents Rb6.} 22. Qa1 {[%emt 0:01:23]} g6 {[%emt 0:05:03]} 23. Qa2 {[%emt 0:01:22]} Qxa2 {[%emt 0:02:45]} 24. Rxa2 {[%emt 0:00:10]} Re7 {[%emt 0:02:42]} 25. Rea1 {[%emt 0:00:45]} Rb7 {[%emt 0:02:09]} 26. h4 {[%emt 0:02:24]} h5 {[%emt 0:00:35]} 27. Nd5 {[%emt 0:02:00]} Kf8 {[%emt 0:02:38]} 28. g3 {[%emt 0:00:45]} Ke8 {[%emt 0:01:25]} 29. Nd2 {[%emt 0:01:25][%cal Bf3d2,Bd2f1,Bf1e3][%mdl 32]} Kd7 {[%emt 0:02:15]} 30. Nf1 {[%emt 0:00:36]} Rbb8 {[%emt 0:03:04]} 31. Nfe3 {[%emt 0:01:07]} Rb7 {[%emt 0:00:16]} 32. Kg2 {[%emt 0:00:58]} Ke8 {[%emt 0:01:02]} 33. Kh3 $36 {[%emt 0:00:59][%mdl 2048] Keeping Black busy.} Rbb8 {[%emt 0:05:04]} (33... Kd7 $16) 34. Ra6 $18 {[%emt 0:01:13]} Kd7 {[%emt 0:00:59]} 35. f3 {[%emt 0:01:23][%cal Bf2f3,Bf3g4,Bg4h5,Bh5h6][%mdl 32]} Rb7 {[%emt 0:06:46]} 36. R6a2 {[%emt 0:10:37]} (36. g4 $18) 36... Be7 $16 {[%emt 0:00:57]} 37. Ra6 {[%emt 0:03:43]} ({White should play} 37. g4 $16) 37... Rcb8 $2 {[%emt 0:03:25] [#] White stays focused until the end.} ({Black should try} 37... Bd8 $1 $11) 38. g4 {[%emt 0:05:31] White is much more active.} hxg4+ {[%emt 0:02:45]} (38... Rh8 $16 {keeps fighting.}) 39. fxg4 $18 {[%emt 0:00:26]} f6 $2 {[%emt 0:05:13]} (39... Rf8 40. Rf1 Nb8) 40. Rf1 {[%emt 0:01:41]} Rf8 {[%emt 0:00:26]} 41. h5 {[%emt 0:02:24]} gxh5 {[%emt 0:00:42]} 42. gxh5 {[%emt 0:00:30]} Nb8 {[%emt 0:02:08]} 43. Ra8 {[%emt 0:02:30] [#] Hoping for Nf5.} Bd8 {[%emt 0:02:39]} (43... Rh8 $142 44. Kh4 (44. Nxf6+ Ke6 $16) 44... Kc8) 44. Nf5 {[%emt 0:00:53] Pair of Knights!} Ke6 {[%emt 0:05:26]} (44... Rh8 $142 45. h6 b4 46. cxb4 Kc6) 45. Rg1 {[%emt 0:00:43]} Rh8 {[%emt 0:00:47]} 46. h6 {[%emt 0:00:41]} b4 {[%emt 0:01:36]} 47. Kh4 {[%emt 0:02:42]} bxc3 {[%emt 0:00:03]} 48. bxc3 {[%emt 0:00:08]} Rb2 {[%emt 0:00:29]} 49. Rg7 {[%emt 0:01:40] White mates.} Re8 {[%emt 0:03:04]} 50. Rxb8 {[%emt 0:01:59]} Rxb8 {[%emt 0:00:07]} 51. Ra7 {[%emt 0:00:05][%cal Rf5g7]} Rg8 {[%emt 0:00:25]} 52. h7 {[%emt 0:00:16] Weighted Error Value: White=0.11 (very precise) /Black=0.55} 1-0

[Event "1000GM 0004 IM Norm 2022"]
[Site "Saint Louis"]
[Date "2022.09.25"]
[Round "8.3"]
[White "Marek, Matyas"]
[Black "Tsolakidou, Stavroula"]
[Result "1/2-1/2"]
[WhiteElo "2338"]
[BlackElo "2400"]
[Annotator "TA"]
[PlyCount "36"]
[EventDate "2022.09.21"]
[EventType "tourn"]
[EventCountry "USA"]
[SourceTitle "playchess.com"]
[Source "ChessBase"]
[SourceQuality "1"]
[TimeControl "5400+30"]

{[%evp 15,16,5,2]} 1. e4 e5 2. Nf3 Nf6 3. Nxe5 d6 4. Nf3 Nxe4 5. Qe2 Qe7 6. d3 Nf6 7. Bg5 Qxe2+ 8. Bxe2 Be7 {[#]} {Predecessor:} 9. O-O $146 {C42: Petroff Defence: 3 Nxe5 and unusual White 3rd moves.} h6 10. Bd2 c5 11. c4 Nc6 12. Nc3 O-O 13. Rfe1 Be6 14. Bd1 d5 15. Ba4 Rfd8 16. cxd5 Nxd5 17. Nxd5 Rxd5 18. Bxc6 bxc6 {½-½ (30) Nakamura,H (2750)-Mamedyarov,S (2776) Berlin 2022} 1/2-1/2

[Event "1000GM 0004 IM Norm 2022"]
[Site "Saint Louis"]
[Date "2022.09.25"]
[Round "8.5"]
[White "Eckert, Doug"]
[Black "Krishnan, Varun"]
[Result "0-1"]
[ECO "D31"]
[WhiteElo "2165"]
[BlackElo "2306"]
[Annotator "TA"]
[PlyCount "55"]
[EventDate "2022.09.21"]
[EventType "tourn"]
[EventCountry "USA"]
[SourceTitle "playchess.com"]
[Source "ChessBase"]
[SourceQuality "1"]
[TimeControl "5400+30"]

{[%evp 13,55,5,16,8,5,0,0,0,12,0,12,15,0,0,28,40,66,12,11,16,23,-47,-49,-118,-119,-119,-117,-122,-119,-265,-173,-165,-153,-148,-103,-149,-156,-313,-295,-410,-390,-714,-707,-1130]} 1. d4 {[%emt 0:00:01]} d5 {[%emt 0:00:06]} 2. c4 {[%emt 0:00:04]} e6 {[%emt 0:00:03]} 3. Nc3 {[%emt 0:00:05]} c6 {[%emt 0:00:06]} 4. cxd5 {[%emt 0:01:18]} exd5 {[%emt 0:00:15]} 5. Bf4 {[%emt 0:00:13]} Bd6 {[%emt 0:01:46]} 6. Bxd6 {[%emt 0:00:05]} Qxd6 {[%emt 0:00:05]} 7. e3 {[%emt 0:00:08]} Ne7 {[%emt 0:00:47]} 8. Bd3 {[%emt 0:00:14] D31: Queen's Gambit Declined: Semi-Slav without ...Nf6 (+ Marshall Gambit and Noteboom) and Exchange Variation lines without ...Nf6.} Bf5 {[%emt 0:01:39]} 9. Nge2 {[%emt 0:00:11]} O-O {[%emt 0:00:53]} 10. O-O {[%emt 0:00:29] [#] The position is equal.} a5 $146 {[%emt 0:01:31]} ({Predecessor:} 10... Nd7 11. Nf4 Nb6 12. Qh5 g6 13. Qe2 Rfe8 14. Rfe1 Bxd3 15. Nxd3 Nf5 16. Qf3 Re7 {½-½ (28) Rogozenco,D (2508)-Nisipeanu,L (2665) Bad Wiessee 2014}) 11. Ng3 {[%emt 0:06:53]} Bg6 {[%emt 0:03:09]} 12. Bxg6 {[%emt 0:01:13]} hxg6 {[%emt 0:00:37]} 13. Rc1 {[%emt 0:04:10]} b5 {[%emt 0:04:27]} 14. Nce2 {[%emt 0:04:31]} g5 {[%emt 0:09:01]} 15. Qd2 {[%emt 0:01:20]} (15. f4 $14) 15... f5 $11 {[%emt 0:04:30][%cal Bf7f5,Bf5f4][%mdl 32]} 16. f3 {[%emt 0:02:54]} Nd7 {[%emt 0:04:52]} 17. e4 {[%emt 0:05:56]} (17. Nh1 $11) 17... f4 $1 $15 {[%emt 0:02:06]} 18. e5 {[%emt 0:02:56] [#]} ({White should play} 18. Nh1 $15) 18... Qb4 $1 $17 {[%emt 0:08:29]} 19. Qxb4 {[%emt 0:00:06]} axb4 {[%emt 0:00:07]} 20. Nh1 {[%emt 0:00:01]} Rxa2 {[%emt 0:00:29]} 21. Rc2 {[%emt 0:03:45]} (21. Rb1 $17) 21... Nf5 {[%emt 0:06:59]} 22. Rb1 {[%emt 0:00:00]} Rc8 {[%emt 0:03:39]} 23. Nc1 {[%emt 0:01:39]} Ra7 {[%emt 0:05:20] Black has more active pieces. The white rooks are badly placed.} ({Don't play} 23... Nxd4 24. Rd2 Nxf3+ 25. gxf3 $14) 24. Rd2 {[%emt 0:00:05]} (24. Nb3 $142) 24... Nb6 {[%emt 0:04:02] [#] And now ...Nc4 would win.} 25. b3 {[%emt 0:01:19] Inhibits Nc4.} (25. Nb3 $17 {might work better.}) 25... Rca8 $19 {[%emt 0:02:08] Strongly threatening ...Ra1.} 26. Ne2 {[%emt 0:06:05]} Ra1 {[%emt 0:02:50]} 27. Rdb2 {[%emt 0:00:20]} (27. Rdd1 Rxb1 28. Rxb1) 27... R8a2 {[%emt 0:01:36]} 28. Rxa2 {[%emt 0:01:57] Weighted Error Value: White=0.50/Black=0.11 (very precise)} 0-1